bitfinex-derivatives/quotes_ETHF0:USTF0_20250107
["timestamp","ask_amount","ask_price","bid_price","bid_amount"]
[1736260642487,0.27649,3617.0,3615.6,40.8]
[1736260642488,3.48428,3617.1,3616.4,0.27653]
[1736260642783,3.48428,3617.1,3616.5,0.27652]
[1736260642784,3.2078,3617.1,3616.5,0.27652]
[1736260642985,1.8273,3617.7,3616.0,1.928]
[1736260642986,3.2078,3616.7,3616.0,1.928]
[1736260643188,3.2078,3616.1,3616.0,1.928]
[1736260643484,3.2078,3617.0,3616.0,10.1358]
[1736260643790,3.2078,3616.6,3616.0,1.928]
[1736260644082,1.8273,3617.7,3616.1,0.27655]
[1736260644287,3.2078,3616.9,3616.8,0.2765]
[1736260644984,3.2078,3617.5,3617.4,0.27645]
[1736260645182,3.2078,3617.5,3616.4,0.69133]
[1736260645384,3.2078,3617.5,3617.2,0.27647]
[1736260645589,3.2078,3617.5,3616.3,2.93332366]
[1736260645787,3.62427366,3618.5,3616.2,0.27654]
[1736260645788,0.27652,3616.6,3616.2,0.27654]
[1736260645976,3.2078,3616.9,3615.7,1.927]
[1736260646283,3.2078,3616.9,3616.5,0.27652]
[1736260646494,3.2078,3616.9,3616.7,0.27651]
[1736260646785,3.2078,3616.9,3616.0,3.2078]
[1736260647087,3.2078,3616.9,3615.8,0.69145]
[1736260647088,3.2078,3616.1,3615.6,0.27659]
[1736260647279,3.2078,3616.1,3615.5,9.126]
[1736260647676,0.27657,3616.0,3615.6,0.27659]
[1736260647881,3.2078,3616.1,3615.5,9.126]
[1736260648183,3.2078,3616.1,3615.9,0.27657]
[1736260648392,3.2078,3616.1,3615.8,0.27657]
[1736260648582,3.2078,3616.1,3615.8,0.27658]
[1736260649086,3.2078,3616.1,3615.5,9.126]
[1736260649282,0.27661,3615.5,3615.1,0.27663]
[1736260649587,0.27661,3615.5,3614.7,1.928]
[1736260649788,3.2078,3615.6,3614.7,1.928]
[1736260649980,3.2078,3616.0,3615.2,40.8]
[1736260650185,3.2078,3615.6,3615.2,40.8]
[1736260650688,3.2078,3615.6,3615.5,0.2766]
[1736260650892,0.27661,3615.5,3615.2,40.8]
[1736260651087,3.8993,3615.6,3614.5,3.2078]
[1736260651285,1.38258,3616.7,3613.4,6.38297417]
[1736260651286,3.2078,3614.6,3613.4,6.38297417]
[1736260651483,9.96689283,3615.4,3614.1,0.27671]
[1736260651484,3.2078,3614.2,3614.1,0.27671]
[1736260651782,3.4845,3614.2,3614.1,40.8]
[1736260651977,3.4845,3614.2,3613.4,6.38297417]
[1736260651978,0.27671,3614.1,3613.4,6.38297417]
[1736260652183,3.2078,3613.6,3613.4,6.38297417]
[1736260652584,3.2078,3613.6,3613.3,0.27677]
[1736260652786,0.69169,3614.6,3613.9,0.27672]
[1736260652787,0.27668,3614.5,3613.9,0.27672]
[1736260652989,3.2078,3614.6,3613.4,1.928]
[1736260653189,3.2078,3615.2,3614.0,0.6918]
[1736260653390,3.2078,3615.2,3614.3,3.2078]
[1736260653690,0.27664,3615.1,3614.6,0.27667]
[1736260653879,3.2078,3615.2,3614.0,1.928]
[1736260654085,3.2078,3615.2,3613.8,3.2078]
[1736260654086,3.2078,3614.4,3613.1,0.69196]
[1736260654292,3.2078,3614.4,3612.9,4.86132366]
[1736260654588,3.2078,3614.0,3613.1,0.69197]
[1736260654794,0.27676,3613.4,3612.8,6.65977417]
[1736260654984,0.2768,3613.0,3612.8,6.38297417]
[1736260655287,0.2768,3612.9,3612.8,6.38297417]
[1736260655489,3.2078,3613.1,3612.6,40.8]
[1736260655684,3.48461,3612.7,3612.6,40.8]
[1736260656281,0.27685,3612.2,3611.8,6.38297417]
[1736260656482,3.2078,3612.2,3611.8,6.38297417]
[1736260656985,3.2078,3612.6,3611.8,6.38297417]
[1736260657193,3.2078,3613.0,3612.7,0.27681]
[1736260657385,3.2078,3613.0,3611.8,9.06497417]
[1736260657585,3.2078,3613.0,3612.7,0.27681]
[1736260657782,3.2078,3613.0,3612.1,3.2078]
[1736260657783,3.2078,3613.0,3612.8,0.2768]
[1736260658089,6.9714538,3612.9,3611.9,1.929]
[1736260658295,3.2078,3613.0,3612.0,3.2078]
[1736260658481,3.2078,3613.0,3611.9,1.929]
[1736260658482,3.2078,3612.5,3611.9,1.929]
[1736260658684,3.2078,3613.0,3611.9,1.929]
[1736260659086,3.2078,3613.0,3612.9,0.2768]
[1736260659292,3.2078,3613.0,3612.2,3.2078]
[1736260659293,3.2078,3613.0,3612.3,0.27684]
[1736260659584,3.2078,3613.0,3612.2,3.2078]
[1736260659789,3.2078,3613.0,3612.9,0.2768]
[1736260659989,3.2078,3613.8,3613.3,0.27676]
[1736260660189,3.2078,3613.8,3612.9,44.0078]
[1736260660384,3.2078,3613.8,3613.3,0.27676]
[1736260660579,3.2078,3613.8,3612.9,40.8]
[1736260660779,3.2078,3613.8,3613.5,0.27674]
[1736260660985,3.2078,3613.8,3613.4,0.27676]
[1736260661187,3.2078,3613.8,3612.9,44.0078]
[1736260661188,0.27675,3613.5,3612.9,44.0078]
[1736260661386,3.2078,3613.3,3612.9,40.8]
[1736260661898,0.27677,3613.2,3612.5,3.2078]
[1736260662084,0.27678,3613.1,3612.6,0.27681]
[1736260662288,3.2078,3613.3,3612.5,3.2078]
[1736260662594,3.2078,3613.3,3611.2,0.2776]
[1736260662595,0.27686,3612.1,3611.7,0.27688]
[1736260662785,3.2078,3612.2,3611.4,3.2078]
[1736260663094,3.2078,3612.8,3611.5,40.8]
[1736260663281,3.2078,3612.8,3611.5,43.73332366]
[1736260663486,3.2078,3613.9,3612.7,3.2078]
[1736260663693,3.2078,3613.1,3612.6,1.929]
[1736260663891,0.2768,3612.9,3612.2,1.929]
[1736260664081,3.2078,3613.5,3612.2,5.1368]
[1736260664483,3.2078,3613.5,3612.6,3.2078]
[1736260664894,0.27676,3613.3,3612.8,0.2768]
[1736260665087,3.2078,3612.9,3612.2,1.929]
[1736260665292,0.27681,3612.7,3611.9,2.21187]
[1736260665594,3.2078,3612.9,3612.0,1.935]
[1736260665989,0.27681,3612.8,3612.4,0.27683]
[1736260666291,0.27681,3612.7,3612.3,0.27684]
[1736260666486,0.27681,3612.8,3612.5,0.27682]
[1736260666687,3.2078,3612.9,3612.0,1.935]
[1736260666887,3.2078,3612.5,3611.5,40.8]
[1736260667290,3.2078,3612.1,3611.5,40.8]
[1736260667495,0.2769,3611.6,3611.4,3.2078]
[1736260667793,3.2078,3612.1,3611.4,3.2078]
[1736260667990,3.2078,3612.6,3611.5,40.8]
[1736260668400,3.2078,3613.0,3611.5,44.70006]
[1736260668689,0.2768,3612.9,3612.4,0.27683]
[1736260668895,3.2078,3613.0,3611.7,3.2078]
[1736260669202,0.27678,3613.2,3612.7,3.2078]
[1736260669390,1.38348,3614.3,3613.1,3.2078]
[1736260669391,3.2078,3614.3,3613.1,3.2078]
[1736260669694,5.4760257,3615.0,3614.3,0.27669]
[1736260669892,2.12413483,3614.9,3614.5,0.27667]
[1736260670089,2.12413483,3614.9,3614.2,1.935]
[1736260670296,2.12413483,3614.9,3614.7,0.27665]
[1736260670488,3.48443,3615.1,3614.8,0.27665]
[1736260670689,3.2078,3615.5,3614.4,0.69171]
[1736260670884,3.2078,3615.5,3614.7,3.2078]
[1736260671088,0.2766,3615.4,3615.0,0.27663]
[1736260671294,3.2078,3615.5,3614.3,42.735]
[1736260671497,3.2078,3615.5,3614.5,3.2078]
[1736260671892,3.48444,3615.0,3614.5,0.27667]
[1736260672193,3.2078,3615.0,3613.8,1.935]
[1736260672395,3.2078,3615.4,3614.1,3.2078]
[1736260672587,0.27662,3615.2,3614.1,44.0078]
[1736260672784,0.27662,3615.2,3614.8,0.27665]
[1736260673188,3.2078,3615.3,3614.4,0.69171]
[1736260673490,3.2078,3616.1,3614.7,3.2078]
[1736260673687,3.2078,3616.1,3615.1,3.2078]
[1736260673892,0.27658,3615.8,3615.4,0.2766]
[1736260674097,3.2078,3616.1,3615.2,1.935]
[1736260674291,0.27657,3615.9,3615.5,0.27659]
[1736260674502,3.48435,3616.1,3615.3,0.27661]
[1736260674792,3.2078,3616.5,3615.5,6.14112366]
[1736260674999,0.2765,3616.7,3615.6,0.27658]
[1736260675198,10.11215221,3617.2,3615.7,0.69146]
[1736260675495,3.2078,3616.7,3615.7,3.2078]
[1736260675702,3.2078,3616.7,3616.2,0.27654]
[1736260675703,3.48431,3616.7,3616.2,0.27654]
[1736260675991,3.2078,3616.7,3615.7,3.2078]
[1736260676193,3.48431,3616.7,3615.8,0.27657]
[1736260676494,3.48431,3616.7,3615.6,2.7467]
[1736260676495,3.2078,3616.7,3615.6,2.7467]
[1736260676796,0.27653,3616.4,3615.8,0.27657]
[1736260677000,3.89908,3616.7,3615.6,4.6807]
[1736260677300,3.2078,3616.3,3615.3,5.1418]
[1736260677496,3.2078,3616.3,3614.5,2.93332366]
[1736260677497,3.2078,3615.5,3614.8,1.934]
[1736260677694,3.2078,3615.5,3615.1,0.27662]
[1736260677898,3.2078,3615.5,3615.2,0.27662]
[1736260678095,3.2078,3615.5,3615.4,0.2766]
[1736260678296,3.2078,3615.5,3615.0,2.93332366]
[1736260678598,3.2078,3615.5,3615.4,0.2766]
[1736260679096,3.2078,3616.0,3615.3,1.934]
[1736260679404,2.6377,3616.9,3614.6,12.6166]
[1736260679405,3.2078,3615.6,3614.6,12.3398]
[1736260679601,3.2078,3615.2,3614.6,12.3398]
[1736260680100,3.2078,3615.8,3614.7,0.69165]
[1736260680294,3.2078,3615.4,3615.1,0.27662]
[1736260680496,0.27661,3615.3,3614.8,0.27664]
[1736260680694,3.2078,3615.4,3615.2,0.27662]
[1736260681207,3.2078,3615.9,3615.8,0.27657]
[1736260681512,3.2078,3615.9,3615.0,0.27663]
[1736260681513,0.27658,3615.8,3615.0,0.27663]
[1736260681797,3.2078,3615.9,3615.5,0.27659]
[1736260682002,3.2078,3615.9,3614.9,1.934]
[1736260682003,3.48437,3615.9,3614.9,1.934]
[1736260682206,3.48437,3615.9,3615.0,43.73332366]
[1736260682207,3.2078,3615.9,3615.0,43.73332366]
[1736260682401,3.2078,3615.9,3615.8,0.27657]
[1736260682706,3.2078,3616.3,3615.5,2.93332366]
[1736260682900,3.2078,3616.3,3615.1,3.89937]
[1736260683106,0.27655,3616.2,3615.1,3.2078]
[1736260683401,3.2078,3616.3,3615.2,41.49155]
[1736260683596,3.2078,3616.7,3616.5,0.27651]
[1736260683798,3.2078,3617.1,3616.0,4.86732366]
[1736260683998,3.2078,3617.1,3617.0,0.27648]
[1736260684196,3.2078,3617.5,3617.4,0.27645]
[1736260684606,3.48419,3618.2,3617.6,0.27644]
[1736260684796,3.2078,3617.8,3617.2,1.934]
[1736260685104,3.2078,3617.8,3617.6,0.27644]
[1736260685315,3.2078,3618.2,3617.6,0.27644]
[1736260686297,0.27651,3616.7,3616.3,0.27653]
[1736260686498,3.2078,3616.8,3616.6,0.27651]
[1736260686693,3.2078,3616.8,3616.5,0.27651]
[1736260686896,3.2078,3616.8,3615.7,2.2108]
[1736260687099,3.2078,3616.4,3616.2,0.27654]
[1736260687305,3.2078,3616.4,3616.3,0.27654]
[1736260687506,3.2078,3616.8,3616.7,0.2765]
[1736260688312,0.27652,3616.6,3616.2,0.27654]
[1736260688605,3.2078,3616.4,3616.3,0.27654]
[1736260689005,3.2078,3616.8,3616.7,0.2765]
[1736260689200,6.98321742,3617.8,3616.0,0.6914]
[1736260689201,3.2078,3617.3,3617.2,0.27646]
[1736260689398,3.2078,3617.3,3617.1,0.27647]
[1736260689907,3.2078,3617.3,3616.8,1.933]
[1736260690208,3.2078,3616.9,3616.8,1.933]
[1736260690398,3.2078,3616.9,3616.8,2.2095]
[1736260690802,3.2078,3617.4,3616.9,0.27649]
[1736260691103,7.00382654,3617.8,3616.8,2.62424]
[1736260691104,3.2078,3617.8,3616.8,2.62424]
[1736260691507,6.98504686,3617.7,3617.5,0.27644]
[1736260691808,6.98504686,3617.7,3616.9,3.62455366]
[1736260691999,6.98504686,3617.7,3617.6,0.27644]
[1736260692198,6.98504686,3617.7,3617.0,3.2078]
[1736260692406,3.2078,3617.2,3616.6,3.2078]
[1736260692605,0.27648,3617.1,3616.3,1.933]
[1736260692901,3.2078,3617.2,3616.4,0.69133]
[1736260693094,3.2078,3617.2,3616.3,1.933]
[1736260693304,3.48427,3617.2,3616.3,1.933]
[1736260693503,3.2078,3617.2,3617.1,0.27647]
[1736260694198,3.2078,3617.2,3617.1,41.07647]
[1736260695001,0.27648,3617.1,3616.8,0.27649]
[1736260695212,3.2078,3617.2,3616.3,1.933]
[1736260695411,3.2078,3617.2,3617.1,0.27647]
[1736260695606,3.2078,3617.2,3617.1,41.07647]
[1736260696504,3.2078,3617.7,3617.1,40.8]
[1736260696700,3.2078,3618.2,3617.3,0.69114]
[1736260696908,3.0218,3618.4,3618.3,0.27638]
[1736260697108,0.5,3618.4,3618.3,0.27638]
[1736260697605,0.77638,3618.4,3617.4,5.52244366]
[1736260697808,0.5,3618.4,3618.1,0.2764]
[1736260698004,3.2078,3618.2,3617.4,2.93332366]
[1736260698210,3.2078,3618.2,3617.9,0.27641]
[1736260698411,3.2078,3618.2,3618.0,0.2764]
[1736260698610,3.2078,3618.2,3617.9,0.27641]
[1736260698814,3.2078,3618.2,3618.1,0.2764]
[1736260699213,0.5,3618.4,3618.3,0.27638]
[1736260699810,4.12521446,3619.1,3619.0,0.27633]
[1736260700005,3.7078,3619.1,3619.0,0.27633]
[1736260701116,3.7078,3619.1,3619.0,41.07633]
[1736260701514,0.5,3619.1,3619.0,41.07633]
[1736260701717,3.7078,3619.7,3619.6,0.27628]
[1736260702314,0.5,3619.7,3619.6,0.27628]
[1736260702615,0.5,3619.7,3619.6,41.07628]
[1736260703924,0.5,3619.7,3618.4,3.62425366]
[1736260704123,3.2078,3619.4,3619.3,0.27631]
[1736260704330,3.2078,3619.4,3618.6,0.6909]
[1736260704527,3.2078,3619.4,3619.3,0.27631]
[1736260704725,3.2078,3619.6,3619.3,0.2763]
[1736260704926,3.2078,3619.6,3619.5,0.27629]
[1736260705928,0.5,3619.7,3619.6,0.27628]
[1736260706227,0.5,3619.7,3619.5,0.27628]
[1736260706428,0.5,3619.7,3619.6,0.27628]
[1736260706817,3.2078,3620.3,3619.1,1.897]
[1736260706818,3.7078,3620.3,3619.1,5.1048]
[1736260707127,3.7078,3620.3,3619.4,0.69073]
[1736260707321,3.7078,3620.3,3619.3,0.69077]
[1736260707523,3.7078,3620.3,3620.1,0.27624]
[1736260707723,3.7078,3620.3,3620.2,0.27624]
[1736260708227,3.7078,3620.3,3620.2,2.17324]
[1736260708924,0.5,3620.3,3620.2,2.17324]
[1736260710025,0.5,3620.3,3620.2,42.97324]
[1736260710330,3.7078,3620.3,3619.8,1.897]
[1736260710526,3.2078,3619.9,3619.4,3.2078]
[1736260710724,3.2078,3619.9,3619.8,0.27627]
[1736260711135,3.7078,3620.3,3620.2,0.27624]
[1736260712624,3.7078,3620.3,3619.7,0.69068]
[1736260712829,3.7078,3620.3,3619.9,0.27626]
[1736260713021,3.7078,3620.3,3619.9,40.8]
[1736260713221,3.7078,3620.3,3620.2,0.27624]
[1736260713422,3.7078,3620.3,3619.9,43.73332366]
[1736260713423,3.2078,3621.0,3620.9,0.27618]
[1736260714024,3.48398,3621.0,3620.9,40.8]
[1736260714223,3.2078,3621.0,3619.4,6.14112366]
[1736260714431,3.2078,3621.0,3619.6,0.69071]
[1736260714432,3.2078,3620.7,3619.6,0.69071]
[1736260714632,3.2078,3620.3,3620.1,0.27624]
[1736260714824,3.2078,3620.7,3620.5,0.27621]
[1736260715132,3.2078,3620.7,3620.6,0.27621]
[1736260716932,3.2078,3620.7,3619.8,5.1038]
[1736260717127,3.2078,3620.3,3620.2,0.27623]
[1736260717328,2.6489,3620.6,3620.2,0.27624]
[1736260717533,3.2078,3620.8,3620.6,0.2762]
[1736260717731,3.2078,3620.8,3620.1,0.69062]
[1736260717732,3.2078,3620.8,3620.7,0.2762]
[1736260717933,3.7078,3621.3,3620.0,0.69063]
[1736260718135,3.7078,3621.3,3621.1,0.27616]
[1736260718730,3.7078,3621.3,3619.9,6.14112366]
[1736260718925,3.7078,3621.3,3619.9,6.18112366]
[1736260719230,3.7078,3621.3,3621.1,0.27616]
[1736260719826,3.7078,3621.3,3621.2,0.27616]
[1736260720030,3.7078,3621.3,3621.2,41.07616]
[1736260721435,3.7078,3621.3,3620.7,3.2078]
[1736260721639,3.7078,3621.3,3621.2,0.27616]
[1736260722541,0.5,3621.3,3621.2,0.27616]
[1736260722835,0.5,3621.3,3621.2,41.07616]
[1736260723431,0.5,3621.3,3621.2,42.91316]
[1736260724040,3.7078,3621.6,3619.9,2.93332366]
[1736260724335,3.2078,3620.6,3620.0,2.52763]
[1736260724631,2.7203,3621.5,3619.1,9.5218]
[1736260724632,3.2078,3620.1,3619.1,15.80088808]
[1736260724833,3.2078,3620.1,3619.2,0.69079]
[1736260725030,3.2078,3619.7,3619.6,0.27628]
[1736260725225,3.2078,3621.6,3619.6,0.1]
[1736260725434,3.2078,3621.6,3620.6,3.2078]
[1736260725633,3.2078,3621.6,3620.5,0.27621]
[1736260725634,3.2078,3621.1,3620.5,0.27621]
[1736260726033,2.7203,3621.0,3619.8,3.2078]
[1736260726231,2.99648,3621.0,3619.9,0.69064]
[1736260726433,2.7203,3621.0,3620.0,0.69062]
[1736260726628,2.7203,3621.0,3620.1,0.69062]
[1736260726629,2.99648,3621.0,3620.1,0.69062]
[1736260726832,2.7203,3621.0,3620.2,5.0448]
[1736260727032,2.7203,3621.0,3620.8,0.27619]
[1736260727336,3.2078,3621.6,3620.6,3.2078]
[1736260727539,3.48393,3621.6,3621.3,0.27615]
[1736260727838,3.2078,3621.6,3621.4,0.27614]
[1736260728040,3.48393,3621.6,3621.3,0.27615]
[1736260728333,3.2078,3621.6,3620.7,1.837]
[1736260728539,0.27616,3621.3,3620.7,1.837]
[1736260728737,3.2078,3621.6,3620.7,1.837]
[1736260729244,0.27617,3621.2,3620.9,0.27618]
[1736260729433,3.2078,3621.6,3620.7,1.837]
[1736260729635,3.2078,3621.6,3621.0,0.27617]
[1736260729836,0.27617,3621.2,3621.0,0.27617]
[1736260730035,0.27617,3621.2,3621.1,40.8]
[1736260730443,3.2078,3621.6,3621.1,40.8]
[1736260730629,0.27616,3621.3,3621.2,0.27616]
[1736260730836,3.2078,3621.6,3620.7,1.837]
[1736260731137,3.48399,3620.8,3620.7,0.2762]
[1736260731330,0.27618,3621.0,3620.9,0.27618]
[1736260731738,0.27619,3620.9,3620.8,0.27619]
[1736260732045,7.57043242,3621.1,3619.8,0.69067]
[1736260732340,6.88000242,3621.1,3621.0,0.27618]
[1736260732531,3.2078,3621.6,3621.0,40.8]
[1736260732736,0.27616,3621.3,3621.2,0.27616]
[1736260732941,0.27617,3621.1,3621.0,41.07617]
[1736260733446,3.2078,3621.2,3619.8,6.14112366]
[1736260733740,0.69038,3621.4,3620.4,0.27622]
[1736260733741,0.27622,3620.5,3620.4,0.27622]
[1736260733945,3.2078,3620.8,3620.4,40.8]
[1736260734339,0.27621,3620.6,3620.5,0.27621]
[1736260734543,3.2078,3620.8,3620.4,40.8]
[1736260734743,0.27621,3620.7,3620.6,0.2762]
[1736260734941,3.2078,3620.8,3620.4,40.8]
[1736260735136,0.27621,3620.6,3620.5,0.27621]
[1736260735340,0.2762,3620.7,3620.6,0.2762]
[1736260735646,0.27626,3620.0,3619.9,0.27626]
[1736260735944,3.48406,3620.0,3619.9,0.27626]
[1736260736140,8.2078,3620.0,3619.2,1.837]
[1736260736443,0.2763,3619.4,3619.2,2.11331]
[1736260736646,0.2763,3619.4,3619.0,3.2078]
[1736260736945,0.2763,3619.4,3619.0,3.48413]
[1736260737141,0.2763,3619.4,3619.0,3.2078]
[1736260737338,0.69066,3620.0,3619.4,0.2763]
[1736260737339,3.2078,3620.0,3619.4,0.2763]
[1736260737539,3.2078,3620.0,3619.0,3.89862]
[1736260737844,3.2078,3620.0,3619.3,2.63687886]
[1736260738033,5.8231,3620.5,3619.9,0.27626]
[1736260738235,5.8231,3620.5,3620.1,2.63687886]
[1736260738236,3.2078,3620.5,3620.1,2.63687886]
[1736260738440,0.27619,3620.8,3620.7,0.27619]
[1736260738733,0.27619,3620.9,3620.7,0.2762]
[1736260738937,0.27618,3621.0,3620.8,0.27619]
[1736260739237,5.60001179,3621.1,3621.0,0.27618]
[1736260739440,3.2078,3621.1,3620.3,0.69058]
[1736260739644,0.27619,3620.8,3620.7,0.27619]
[1736260739842,0.27618,3621.0,3620.9,0.27618]
[1736260740147,3.2078,3621.1,3621.0,0.27618]
[1736260741148,0.27619,3620.9,3620.8,0.27619]
[1736260741546,3.2078,3621.1,3620.7,40.8]
[1736260741845,0.27618,3621.0,3620.9,0.27618]
[1736260742152,3.2078,3621.5,3620.7,40.8]
[1736260742348,3.7078,3621.9,3621.8,0.27612]
[1736260742554,5.82384179,3621.9,3621.8,0.27612]
[1736260743055,5.82384179,3621.9,3621.8,41.07612]
[1736260743056,2.61604179,3621.9,3621.8,41.07612]
[1736260743250,0.5191027,3622.1,3622.0,0.2761]
[1736260743445,5.29010449,3622.5,3622.0,5.0]
[1736260743745,5.18378773,3622.5,3622.4,3.48387]
[1736260744051,0.27595,3624.0,3622.5,0.69016]
[1736260744252,2.6113,3624.3,3623.2,0.69003]
[1736260744549,3.2078,3624.2,3623.2,3.2078]
[1736260744754,3.2078,3623.7,3623.2,0.27601]
[1736260744949,3.2078,3623.7,3623.3,0.276]
[1736260745150,3.2078,3623.8,3622.8,3.2078]
[1736260745853,0.27598,3623.6,3623.0,0.27602]
[1736260746045,0.27598,3623.6,3622.8,3.2078]
[1736260746046,3.2078,3623.8,3622.8,9.61688808]
[1736260746352,0.27597,3623.7,3623.2,0.27601]
[1736260746849,0.27598,3623.6,3622.8,9.61688808]
[1736260747047,0.27598,3623.6,3623.1,0.27601]
[1736260747248,3.2078,3623.8,3622.8,6.40908808]
[1736260747442,0.27603,3622.9,3622.6,1.837]
[1736260747645,3.2078,3622.9,3622.6,1.837]
[1736260747950,3.2078,3623.4,3622.6,0.27605]
[1736260748146,0.27603,3622.9,3622.5,6.40908808]
[1736260748350,3.2078,3623.4,3622.5,6.40908808]
[1736260748540,0.27605,3622.6,3622.5,6.40908808]
[1736260748855,6.86944779,3622.6,3622.2,4.31230082]
[1736260749047,2.94232942,3622.1,3621.6,8.62460165]
[1736260749348,3.48392,3621.7,3621.6,8.62460165]
[1736260749544,3.2078,3621.7,3621.6,8.62460165]
[1736260749849,3.2078,3621.7,3621.6,8.90073165]
[1736260750152,3.2078,3622.3,3621.9,0.2761]
[1736260750355,3.2078,3622.3,3621.4,44.0078]
[1736260750647,3.2078,3622.3,3622.2,0.27608]
[1736260750845,3.2078,3622.8,3621.8,3.2078]
[1736260751039,0.27606,3622.6,3622.2,0.27608]
[1736260751540,3.2078,3622.8,3621.7,3.89811]
[1736260751748,3.2078,3622.8,3622.7,0.27605]
[1736260751944,3.2078,3623.4,3623.1,0.27601]
[1736260752143,0.27602,3623.1,3622.7,0.27604]
[1736260752547,3.2078,3623.4,3622.4,0.27607]
[1736260752747,3.2078,3623.4,3622.1,4.73932942]
[1736260752949,3.2078,3623.4,3622.2,3.2078]
[1736260753141,3.4838,3623.4,3622.9,0.27602]
[1736260753345,3.4838,3623.4,3622.3,0.96628]
[1736260753552,3.2078,3623.4,3622.7,0.27605]
[1736260753755,3.2078,3623.9,3623.1,2.94232942]
[1736260753948,3.2078,3623.9,3623.5,0.27598]
[1736260754153,0.27597,3623.8,3623.3,0.276]
[1736260754348,3.2078,3623.9,3623.2,1.797]
[1736260754551,3.2078,3623.9,3623.8,0.27596]
[1736260755052,0.68967,3625.2,3623.2,1.797]
[1736260755053,3.48371,3624.5,3624.0,0.27594]
[1736260755241,3.48371,3624.5,3623.9,0.27595]
[1736260755242,0.27592,3624.4,3623.9,0.27595]
[1736260755442,3.2078,3624.5,3624.2,0.27593]
[1736260755646,3.2078,3624.5,3623.8,40.8]
[1736260755851,0.27592,3624.4,3623.9,0.27595]
[1736260756050,3.2078,3624.5,3623.9,0.27595]
[1736260756248,3.2078,3625.5,3624.2,3.2078]
[1736260756446,3.2078,3626.0,3625.5,0.27583]
[1736260756648,3.2078,3626.0,3625.3,2.94232942]
[1736260756843,3.2078,3626.0,3625.4,0.27583]
[1736260757152,3.2078,3626.0,3625.4,1.797]
[1736260757656,3.2078,3625.6,3625.4,1.797]
[1736260758049,0.2758,3626.0,3625.4,1.797]
[1736260758249,3.2078,3626.1,3625.4,1.797]
[1736260758451,3.2078,3626.5,3625.9,0.2758]
[1736260758652,3.2078,3626.5,3625.6,0.27583]
[1736260758852,3.48356,3626.5,3625.7,0.27581]
[1736260759047,0.2758,3626.0,3625.4,1.797]
[1736260759256,3.2078,3626.1,3625.4,1.797]
[1736260759654,0.2758,3625.9,3625.4,1.797]
[1736260759952,3.2078,3626.1,3625.1,2.736]
[1736260760158,0.27583,3625.6,3625.1,2.736]
[1736260760356,3.2078,3626.1,3625.1,2.736]
[1736260760654,3.2078,3626.3,3625.1,2.736]
[1736260760956,3.2078,3626.3,3625.3,6.15012942]
[1736260761158,3.2078,3626.3,3626.1,0.27579]
[1736260761357,3.2078,3626.3,3625.3,6.15012942]
[1736260761656,3.2078,3626.3,3625.8,3.21813942]
[1736260761855,3.2078,3626.3,3625.8,2.94232942]
[1736260762066,3.2078,3626.3,3625.7,0.27581]
[1736260762353,3.2078,3625.9,3625.3,3.2078]
[1736260762862,0.27582,3625.8,3625.1,3.01186]
[1736260763046,0.27583,3625.6,3625.1,2.736]
[1736260763250,0.68942,3626.4,3624.7,3.2078]
[1736260763251,0.27586,3625.2,3624.7,3.2078]
[1736260763454,3.2078,3625.5,3624.1,0.27593]
[1736260763455,0.27589,3624.8,3624.1,0.27593]
[1736260763757,0.27589,3624.8,3624.0,2.7504]
[1736260763758,0.27591,3624.5,3624.0,2.7504]
[1736260763953,3.2078,3624.2,3624.0,2.7504]
[1736260764345,3.4837,3624.6,3624.0,2.7504]
[1736260764545,3.2078,3624.6,3623.3,7.94612942]
[1736260764859,0.27593,3624.3,3623.3,7.94612942]
[1736260765047,0.27591,3624.5,3623.6,0.27598]
[1736260765250,3.2078,3624.0,3623.6,0.27598]
[1736260765454,3.2078,3624.5,3623.4,40.8]
[1736260765651,0.27592,3624.4,3623.7,0.27597]
[1736260766262,3.2078,3624.5,3623.4,40.8]
[1736260766453,0.27598,3623.7,3623.4,40.8]
[1736260766757,0.27598,3623.6,3622.6,0.27605]
[1736260766950,3.2078,3623.2,3622.3,3.2078]
[1736260767154,3.2078,3622.6,3622.2,5.49322942]
[1736260767358,3.2078,3622.6,3622.4,40.8]
[1736260767564,0.27603,3623.0,3622.4,41.07606]
[1736260767757,3.2078,3623.2,3622.4,40.8]
[1736260768067,3.2078,3623.2,3623.1,0.27602]
[1736260768460,0.27591,3624.5,3623.9,0.27595]
[1736260768651,3.2078,3624.7,3623.6,2.94232942]
[1736260768852,0.27594,3624.1,3624.0,40.8]
[1736260769151,0.27598,3623.6,3622.9,2.6995]
[1736260769357,3.2078,3623.7,3622.9,2.6995]
[1736260769662,3.2078,3623.7,3623.1,0.27601]
[1736260769960,3.48378,3623.7,3623.1,0.27601]
[1736260770159,3.48378,3623.7,3623.0,40.8]
[1736260770160,0.27598,3623.6,3623.0,41.07602]
[1736260770360,3.48377,3623.7,3623.1,0.27601]
[1736260770553,3.2078,3623.7,3623.0,40.8]
[1736260770763,0.27602,3623.1,3623.0,40.8]
[1736260771057,3.2078,3623.3,3623.0,40.8]
[1736260771259,0.27601,3623.2,3623.0,40.8]
[1736260771459,3.2078,3623.3,3623.0,40.8]
[1736260771660,0.27602,3623.1,3623.0,40.8]